[Event "Titled Tuesday Blitz January 10 Early 2023"]
[White "Fisher_TheGalactic"]
[Black "Wilson, Elvin"]
[BlackFideId "2014874"]
[WhiteElo "2530"]
[BlackElo "2183"]
[Result "1-0"]
[Round "08"]
[TimeControl "180+2"]
[Date "2023.01.10"]
[WhiteClock "0:00:24"]
[BlackClock "0:00:10"]

1. Nf3 {[%clk 0:03:00]}  Nf6 {[%clk 0:02:59]} 2. g3 {[%clk 0:03:01]}  e6 {[%clk 0:02:57]} 3. Bg2 {[%clk 0:03:01]}  c5 {[%clk 0:02:54]} 4. O-O {[%clk 0:03:02]}  Be7 {[%clk 0:02:53]} 5. d3 {[%clk 0:03:03]}  d5 {[%clk 0:02:50]} 6. e4 {[%clk 0:03:03]}  O-O {[%clk 0:02:46]} 7. exd5 {[%clk 0:03:02]}  exd5 {[%clk 0:02:45]} 8. Re1 {[%clk 0:03:02]}  Nc6 {[%clk 0:02:42]} 9. Nbd2 {[%clk 0:03:03]}  Re8 {[%clk 0:02:33]} 10. Nf1 {[%clk 0:03:02]}  h6 {[%clk 0:02:32]} 11. Bf4 {[%clk 0:03:01]}  Bf5 {[%clk 0:02:27]} 12. Ne3 {[%clk 0:02:59]}  Be6 {[%clk 0:02:13]} 13. Ne5 {[%clk 0:02:57]}  Rc8 {[%clk 0:01:45]} 14. N3g4 {[%clk 0:02:48]}  Nxg4 {[%clk 0:01:04]} 15. Nxg4 {[%clk 0:02:49]}  d4 {[%clk 0:00:53]} 16. Ne5 {[%clk 0:02:17]}  Bd5 {[%clk 0:00:49]} 17. Qh5 {[%clk 0:02:10]}  Nxe5 {[%clk 0:00:45]} 18. Bxd5 {[%clk 0:02:01]}  Qxd5 {[%clk 0:00:42]} 19. Rxe5 {[%clk 0:02:01]}  Qd7 {[%clk 0:00:41]} 20. Rae1 {[%clk 0:02:00]}  Bf6 {[%clk 0:00:39]} 21. Rxe8+ {[%clk 0:01:59]}  Rxe8 {[%clk 0:00:40]} 22. Rxe8+ {[%clk 0:01:59]}  Qxe8 {[%clk 0:00:40]} 23. Qxc5 {[%clk 0:01:59]}  Qe1+ {[%clk 0:00:29]} 24. Kg2 {[%clk 0:01:59]}  Qb1 {[%clk 0:00:27]} 25. Qc8+ {[%clk 0:01:50]}  Kh7 {[%clk 0:00:27]} 26. Qxb7 {[%clk 0:01:29]}  Qxc2 {[%clk 0:00:26]} 27. Qxf7 {[%clk 0:01:00]}  Qxd3 {[%clk 0:00:25]} 28. Qd5 {[%clk 0:01:01]}  Qa6 {[%clk 0:00:22]} 29. Be5 {[%clk 0:00:46]}  Bxe5 {[%clk 0:00:21]} 30. Qxe5 {[%clk 0:00:47]}  Qb6 {[%clk 0:00:22]} 31. Qe4+ {[%clk 0:00:44]}  Kg8 {[%clk 0:00:21]} 32. b3 {[%clk 0:00:44]}  Qd6 {[%clk 0:00:20]} 33. Qe8+ {[%clk 0:00:40]}  Kh7 {[%clk 0:00:20]} 34. Qe4+ {[%clk 0:00:41]}  Kg8 {[%clk 0:00:20]} 35. Qd3 {[%clk 0:00:41]}  Qd5+ {[%clk 0:00:20]} 36. Kg1 {[%clk 0:00:42]}  Kf7 {[%clk 0:00:18]} 37. Qc4 {[%clk 0:00:25]}  Qxc4 {[%clk 0:00:17]} 38. bxc4 {[%clk 0:00:26]}  Ke6 {[%clk 0:00:18]} 39. Kf1 {[%clk 0:00:26]}  Kd6 {[%clk 0:00:19]} 40. Ke2 {[%clk 0:00:27]}  Kc5 {[%clk 0:00:18]} 41. Kd3 {[%clk 0:00:27]}  a5 {[%clk 0:00:17]} 42. a3 {[%clk 0:00:27]}  g5 {[%clk 0:00:15]} 43. h3 {[%clk 0:00:23]}  h5 {[%clk 0:00:15]} 44. f4 {[%clk 0:00:20]}  h4 {[%clk 0:00:15]} 45. gxh4 {[%clk 0:00:20]}  gxf4 {[%clk 0:00:15]} 46. h5 {[%clk 0:00:20]}  f3 {[%clk 0:00:15]} 47. h6 {[%clk 0:00:20]}  f2 {[%clk 0:00:15]} 48. Ke2 {[%clk 0:00:20]}  d3+ {[%clk 0:00:13]} 49. Kxf2 {[%clk 0:00:21]}  Kxc4 {[%clk 0:00:14]} 50. h7 {[%clk 0:00:21]}  Kc3 {[%clk 0:00:15]} 51. h8=Q+ {[%clk 0:00:21]}  Kc2 {[%clk 0:00:15]} 52. Qd4 {[%clk 0:00:22]}  d2 {[%clk 0:00:15]} 53. Ke2 {[%clk 0:00:22]}  Kb3 {[%clk 0:00:14]} 54. Kxd2 {[%clk 0:00:21]}  Kxa3 {[%clk 0:00:14]} 55. Kc2 {[%clk 0:00:22]}  a4 {[%clk 0:00:11]} 56. Qc5+ {[%clk 0:00:22]}  Ka2 {[%clk 0:00:11]} 57. Qb4 {[%clk 0:00:23]}  a3 {[%clk 0:00:10]} 58. Qb1# {[%clk 0:00:24]} 1-0


[Site "https://www.chess.com"]

[Event "Titled Tuesday Blitz January 10 Early 2023"]
[White "Salman, Pavel"]
[Black "Vlassov, Nikolai"]
[WhiteFideId "24153753"]
[BlackFideId "4103360"]
[WhiteElo "2287"]
[BlackElo "2283"]
[Result "1-0"]
[Round "08"]
[TimeControl "180+2"]
[Date "2023.01.10"]
[WhiteClock "0:01:33"]
[BlackClock "0:00:31"]

1. Nf3 {[%clk 0:02:59]}  c5 {[%clk 0:02:58]} 2. g3 {[%clk 0:03:00]}  Nc6 {[%clk 0:02:57]} 3. Bg2 {[%clk 0:03:01]}  e5 {[%clk 0:02:57]} 4. d3 {[%clk 0:03:00]}  d5 {[%clk 0:02:56]} 5. O-O {[%clk 0:03:01]}  f6 {[%clk 0:02:55]} 6. e4 {[%clk 0:03:01]}  d4 {[%clk 0:02:54]} 7. a4 {[%clk 0:03:00]}  Be6 {[%clk 0:02:54]} 8. Na3 {[%clk 0:03:01]}  Qd7 {[%clk 0:02:52]} 9. a5 {[%clk 0:02:59]}  g5 {[%clk 0:02:49]} 10. a6 {[%clk 0:02:58]}  b6 {[%clk 0:02:47]} 11. Bxg5 {[%clk 0:02:49]}  fxg5 {[%clk 0:02:46]} 12. Nxg5 {[%clk 0:02:50]}  O-O-O {[%clk 0:02:10]} 13. Nxe6 {[%clk 0:02:35]}  Qxe6 {[%clk 0:02:10]} 14. f4 {[%clk 0:02:28]}  Nf6 {[%clk 0:01:43]} 15. Nc4 {[%clk 0:02:11]}  Bh6 {[%clk 0:01:04]} 16. fxe5 {[%clk 0:01:54]}  Nxe5 {[%clk 0:01:00]} 17. Nxe5 {[%clk 0:01:50]}  Be3+ {[%clk 0:00:54]} 18. Kh1 {[%clk 0:01:50]}  Qxe5 {[%clk 0:00:55]} 19. Bh3+ {[%clk 0:01:50]}  Kb8 {[%clk 0:00:52]} 20. Rf5 {[%clk 0:01:50]}  Qe7 {[%clk 0:00:48]} 21. Qf3 {[%clk 0:01:48]}  Rdf8 {[%clk 0:00:34]} 22. Rf1 {[%clk 0:01:46]}  Nd7 {[%clk 0:00:32]} 23. e5 {[%clk 0:01:34]}  Rxf5 {[%clk 0:00:31]} 24. Qb7# {[%clk 0:01:33]} 1-0


[Site "https://www.chess.com"]

[Event "Titled Tuesday Blitz January 10 Early 2023"]
[White "Barria Zuniga, Daniel"]
[Black "Gracia Alvarez, Gerardo Antonio"]
[WhiteFideId "3400816"]
[BlackFideId "5109124"]
[WhiteElo "2341"]
[BlackElo "2238"]
[Result "1-0"]
[Round "08"]
[TimeControl "180+2"]
[Date "2023.01.10"]
[WhiteClock "0:00:19"]
[BlackClock "0:00:05"]

1. d4 {[%clk 0:01:52]}  Nf6 {[%clk 0:02:58]} 2. c4 {[%clk 0:01:51]}  g6 {[%clk 0:02:59]} 3. Nc3 {[%clk 0:01:49]}  Bg7 {[%clk 0:02:59]} 4. e4 {[%clk 0:01:49]}  d6 {[%clk 0:03:00]} 5. Be2 {[%clk 0:01:47]}  O-O {[%clk 0:02:59]} 6. Nf3 {[%clk 0:01:47]}  e5 {[%clk 0:02:57]} 7. d5 {[%clk 0:01:47]}  a5 {[%clk 0:02:56]} 8. Bg5 {[%clk 0:01:48]}  h6 {[%clk 0:02:54]} 9. Bh4 {[%clk 0:01:47]}  Na6 {[%clk 0:02:54]} 10. Nd2 {[%clk 0:01:47]}  Qe8 {[%clk 0:02:50]} 11. O-O {[%clk 0:01:47]}  Bd7 {[%clk 0:02:38]} 12. b3 {[%clk 0:01:45]}  Nh7 {[%clk 0:02:35]} 13. a3 {[%clk 0:01:44]}  h5 {[%clk 0:02:34]} 14. f3 {[%clk 0:01:42]}  Bh6 {[%clk 0:02:32]} 15. Rb1 {[%clk 0:01:42]}  Be3+ {[%clk 0:02:31]} 16. Kh1 {[%clk 0:01:42]}  Bc5 {[%clk 0:02:31]} 17. Qc1 {[%clk 0:01:41]}  f5 {[%clk 0:02:21]} 18. exf5 {[%clk 0:01:41]}  gxf5 {[%clk 0:02:19]} 19. f4 {[%clk 0:01:41]}  e4 {[%clk 0:02:00]} 20. Re1 {[%clk 0:01:41]}  Qg6 {[%clk 0:01:54]} 21. Nf1 {[%clk 0:01:39]}  Nf6 {[%clk 0:01:33]} 22. h3 {[%clk 0:01:36]}  Kh7 {[%clk 0:01:29]} 23. Ne3 {[%clk 0:01:33]}  Rg8 {[%clk 0:01:23]} 24. Bf1 {[%clk 0:01:30]}  Qh6 {[%clk 0:01:16]} 25. Nc2 {[%clk 0:01:23]}  Ng4 {[%clk 0:00:29]} 26. Nd1 {[%clk 0:01:06]}  Ba7 {[%clk 0:00:14]} 27. b4 {[%clk 0:01:05]}  axb4 {[%clk 0:00:15]} 28. axb4 {[%clk 0:01:06]}  Rg6 {[%clk 0:00:14]} 29. Qd2 {[%clk 0:01:05]}  Rag8 {[%clk 0:00:14]} 30. Nd4 {[%clk 0:01:04]}  e3 {[%clk 0:00:13]} 31. Nxe3 {[%clk 0:01:03]}  Qxf4 {[%clk 0:00:13]} 32. hxg4 {[%clk 0:00:59]}  Bxd4 {[%clk 0:00:06]} 33. g3 {[%clk 0:00:52]}  Bxe3 {[%clk 0:00:05]} 34. Qxe3 {[%clk 0:00:51]}  Qxg4 {[%clk 0:00:05]} 35. Rbd1 {[%clk 0:00:27]}  f4 {[%clk 0:00:05]} 36. Qxf4 {[%clk 0:00:24]}  Qxf4 {[%clk 0:00:04]} 37. gxf4 {[%clk 0:00:25]}  Bg4 {[%clk 0:00:04]} 38. Rd4 {[%clk 0:00:23]}  Bf3+ {[%clk 0:00:03]} 39. Kh2 {[%clk 0:00:22]}  Nxb4 {[%clk 0:00:04]} 40. Re7+ {[%clk 0:00:21]}  R8g7 {[%clk 0:00:04]} 41. Rxg7+ {[%clk 0:00:21]}  Rxg7 {[%clk 0:00:05]} 42. Rd2 {[%clk 0:00:21]}  Na6 {[%clk 0:00:04]} 43. Rf2 {[%clk 0:00:19]}  Be4 {[%clk 0:00:04]} 44. f5 {[%clk 0:00:20]}  Nc5 {[%clk 0:00:04]} 45. f6 {[%clk 0:00:20]}  Re7 {[%clk 0:00:05]} 46. fxe7 {[%clk 0:00:19]} 1-0


[Site "https://www.chess.com"]

[Event "Titled Tuesday Blitz January 10 Early 2023"]
[White "Leiva, Gianmarco"]
[Black "Sanchez, Robert"]
[WhiteFideId "3804399"]
[BlackFideId "2034360"]
[WhiteElo "2392"]
[BlackElo "1966"]
[Result "0-1"]
[Round "08"]
[TimeControl "180+2"]
[Date "2023.01.10"]
[WhiteClock "0:01:59"]
[BlackClock "0:02:26"]

1. e4 {[%clk 0:03:00]}  e6 {[%clk 0:02:58]} 2. d4 {[%clk 0:02:59]}  d5 {[%clk 0:02:58]} 3. Nd2 {[%clk 0:02:55]}  Nf6 {[%clk 0:02:57]} 4. e5 {[%clk 0:02:54]}  Nfd7 {[%clk 0:02:58]} 5. Bd3 {[%clk 0:02:54]}  c5 {[%clk 0:02:58]} 6. c3 {[%clk 0:02:55]}  Nc6 {[%clk 0:02:59]} 7. Ne2 {[%clk 0:02:55]}  cxd4 {[%clk 0:02:59]} 8. cxd4 {[%clk 0:02:55]}  f6 {[%clk 0:03:00]} 9. exf6 {[%clk 0:02:56]}  Nxf6 {[%clk 0:03:00]} 10. Nf3 {[%clk 0:02:57]}  Bd6 {[%clk 0:03:01]} 11. O-O {[%clk 0:02:51]}  Qc7 {[%clk 0:03:01]} 12. Bg5 {[%clk 0:02:51]}  O-O {[%clk 0:03:01]} 13. Bh4 {[%clk 0:02:50]}  Nh5 {[%clk 0:03:01]} 14. Qc2 {[%clk 0:02:50]}  h6 {[%clk 0:03:01]} 15. Bg6 {[%clk 0:02:51]}  Rxf3 {[%clk 0:02:56]} 16. Bxh5 {[%clk 0:02:35]}  Rf5 {[%clk 0:02:55]} 17. Bg4 {[%clk 0:02:34]}  Bxh2+ {[%clk 0:02:54]} 18. Kh1 {[%clk 0:02:30]}  Bd6 {[%clk 0:02:55]} 19. Bxf5 {[%clk 0:02:14]}  exf5 {[%clk 0:02:56]} 20. f3 {[%clk 0:02:08]}  Qf7 {[%clk 0:02:48]} 21. Kg1 {[%clk 0:01:59]}  Qh5 {[%clk 0:02:31]} 22. Bg3 {[%clk 0:01:59]}  Nxd4 {[%clk 0:02:26]} 0-1


[Site "https://www.chess.com"]

[Event "Titled Tuesday Blitz January 10 Early 2023"]
[White "Renjith, Sravan"]
[Black "Luukkonen, Tommi"]
[WhiteFideId "4306783"]
[BlackFideId "501808"]
[WhiteElo "2172"]
[BlackElo "2292"]
[Result "0-1"]
[Round "08"]
[TimeControl "180+2"]
[Date "2023.01.10"]
[WhiteClock "0:01:15"]
[BlackClock "0:01:05"]

1. d4 {[%clk 0:03:00]}  Nf6 {[%clk 0:02:59]} 2. Nf3 {[%clk 0:03:00]}  g6 {[%clk 0:02:58]} 3. Bf4 {[%clk 0:03:00]}  Bg7 {[%clk 0:02:58]} 4. e3 {[%clk 0:03:00]}  O-O {[%clk 0:02:57]} 5. h3 {[%clk 0:03:01]}  d6 {[%clk 0:02:57]} 6. c3 {[%clk 0:03:01]}  Nc6 {[%clk 0:02:58]} 7. Nbd2 {[%clk 0:03:01]}  Nd7 {[%clk 0:02:58]} 8. Be2 {[%clk 0:02:59]}  e5 {[%clk 0:02:58]} 9. Bh2 {[%clk 0:03:00]}  f5 {[%clk 0:02:58]} 10. O-O {[%clk 0:02:46]}  e4 {[%clk 0:02:58]} 11. Ne1 {[%clk 0:02:46]}  Kh8 {[%clk 0:02:58]} 12. f3 {[%clk 0:02:45]}  exf3 {[%clk 0:02:41]} 13. Ndxf3 {[%clk 0:02:41]}  Nf6 {[%clk 0:02:08]} 14. Nd3 {[%clk 0:02:19]}  Qe7 {[%clk 0:02:07]} 15. Qc1 {[%clk 0:02:15]}  Bd7 {[%clk 0:02:06]} 16. Re1 {[%clk 0:02:14]}  Ne4 {[%clk 0:02:05]} 17. Bf1 {[%clk 0:02:12]}  Rae8 {[%clk 0:02:03]} 18. Nf4 {[%clk 0:02:09]}  Bh6 {[%clk 0:02:00]} 19. c4 {[%clk 0:02:05]}  g5 {[%clk 0:01:59]} 20. Nd5 {[%clk 0:02:05]}  Qd8 {[%clk 0:01:59]} 21. c5 {[%clk 0:02:04]}  g4 {[%clk 0:01:55]} 22. Nxc7 {[%clk 0:01:57]}  gxf3 {[%clk 0:01:50]} 23. gxf3 {[%clk 0:01:52]}  Rg8+ {[%clk 0:01:48]} 24. Bg2 {[%clk 0:01:51]}  Qxc7 {[%clk 0:01:32]} 25. fxe4 {[%clk 0:01:50]}  Rxe4 {[%clk 0:01:24]} 26. Bxd6 {[%clk 0:01:46]}  Qd8 {[%clk 0:01:24]} 27. Kh2 {[%clk 0:01:38]}  Qg5 {[%clk 0:01:17]} 28. Bxe4 {[%clk 0:01:35]}  fxe4 {[%clk 0:01:14]} 29. Rg1 {[%clk 0:01:18]}  Qh5 {[%clk 0:01:07]} 30. Rxg8+ {[%clk 0:01:16]}  Kxg8 {[%clk 0:01:08]} 31. Qc4+ {[%clk 0:01:16]}  Kh8 {[%clk 0:01:06]} 32. Rg1 {[%clk 0:01:15]}  Qxh3# {[%clk 0:01:05]} 0-1


[Site "https://www.chess.com"]

[Event "Titled Tuesday Blitz January 10 Early 2023"]
[White "Arngrimsson, Dagur"]
[Black "Dinu, Dumitru-Daniel"]
[WhiteFideId "2301288"]
[BlackFideId "1208403"]
[WhiteElo "2370"]
[BlackElo "2203"]
[Result "1-0"]
[Round "08"]
[TimeControl "180+2"]
[Date "2023.01.10"]
[WhiteClock "0:00:58"]
[BlackClock "0:00:10"]

1. e4 {[%clk 0:03:00]}  c5 {[%clk 0:02:59]} 2. Nf3 {[%clk 0:03:00]}  e6 {[%clk 0:02:58]} 3. d4 {[%clk 0:03:00]}  cxd4 {[%clk 0:02:58]} 4. Nxd4 {[%clk 0:03:01]}  Nc6 {[%clk 0:02:58]} 5. Nc3 {[%clk 0:03:01]}  Nf6 {[%clk 0:02:57]} 6. h3 {[%clk 0:02:57]}  Bb4 {[%clk 0:02:54]} 7. Nxc6 {[%clk 0:02:42]}  bxc6 {[%clk 0:02:52]} 8. Bd3 {[%clk 0:02:42]}  d5 {[%clk 0:02:49]} 9. e5 {[%clk 0:02:35]}  Nd7 {[%clk 0:02:46]} 10. Bf4 {[%clk 0:02:27]}  d4 {[%clk 0:02:13]} 11. a3 {[%clk 0:02:27]}  Ba5 {[%clk 0:02:13]} 12. b4 {[%clk 0:02:27]}  dxc3 {[%clk 0:02:13]} 13. bxa5 {[%clk 0:02:27]}  Qxa5 {[%clk 0:02:14]} 14. O-O {[%clk 0:02:25]}  O-O {[%clk 0:01:52]} 15. Re1 {[%clk 0:02:24]}  Nc5 {[%clk 0:01:38]} 16. Bxh7+ {[%clk 0:02:18]}  Kxh7 {[%clk 0:01:31]} 17. Qh5+ {[%clk 0:02:19]}  Kg8 {[%clk 0:01:31]} 18. Re3 {[%clk 0:02:13]}  Qa4 {[%clk 0:01:09]} 19. Bh6 {[%clk 0:01:55]}  gxh6 {[%clk 0:00:24]} 20. Qxh6 {[%clk 0:01:51]}  Ne4 {[%clk 0:00:20]} 21. Rae1 {[%clk 0:01:17]}  f5 {[%clk 0:00:20]} 22. Qg6+ {[%clk 0:01:05]}  Kh8 {[%clk 0:00:19]} 23. Rxe4 {[%clk 0:01:02]}  fxe4 {[%clk 0:00:17]} 24. Re3 {[%clk 0:01:01]}  Qxc2 {[%clk 0:00:14]} 25. Qh5+ {[%clk 0:00:57]}  Kg8 {[%clk 0:00:10]} 26. Rg3# {[%clk 0:00:58]} 1-0


[Site "https://www.chess.com"]

[Event "Titled Tuesday Blitz January 10 Early 2023"]
[White "Leve, Nitai"]
[Black "Hirneise, Jens"]
[WhiteFideId "2006898"]
[BlackFideId "24614734"]
[WhiteElo "2128"]
[BlackElo "2277"]
[Result "0-1"]
[Round "08"]
[TimeControl "180+2"]
[Date "2023.01.10"]
[WhiteClock "0:00:02"]
[BlackClock "0:00:05"]

1. e4 {[%clk 0:03:00]}  c6 {[%clk 0:02:58]} 2. d4 {[%clk 0:03:00]}  d5 {[%clk 0:02:59]} 3. exd5 {[%clk 0:03:01]}  cxd5 {[%clk 0:02:59]} 4. c4 {[%clk 0:03:02]}  Nf6 {[%clk 0:02:56]} 5. Nc3 {[%clk 0:03:02]}  Nc6 {[%clk 0:02:54]} 6. Nf3 {[%clk 0:03:02]}  a6 {[%clk 0:02:54]} 7. cxd5 {[%clk 0:03:03]}  Nxd5 {[%clk 0:02:54]} 8. Bc4 {[%clk 0:03:03]}  Nb6 {[%clk 0:02:34]} 9. Bb3 {[%clk 0:02:55]}  e6 {[%clk 0:02:30]} 10. O-O {[%clk 0:02:54]}  Be7 {[%clk 0:02:27]} 11. d5 {[%clk 0:02:31]}  exd5 {[%clk 0:02:28]} 12. Nxd5 {[%clk 0:02:31]}  Nxd5 {[%clk 0:02:09]} 13. Bxd5 {[%clk 0:02:32]}  O-O {[%clk 0:02:04]} 14. Bxc6 {[%clk 0:02:33]}  bxc6 {[%clk 0:02:02]} 15. Qxd8 {[%clk 0:02:24]}  Rxd8 {[%clk 0:02:02]} 16. Be3 {[%clk 0:02:24]}  Bf6 {[%clk 0:01:54]} 17. Rac1 {[%clk 0:02:20]}  Bxb2 {[%clk 0:01:52]} 18. Rxc6 {[%clk 0:01:57]}  Be6 {[%clk 0:01:51]} 19. a4 {[%clk 0:01:40]}  a5 {[%clk 0:01:49]} 20. h3 {[%clk 0:01:35]}  h6 {[%clk 0:01:38]} 21. Rc7 {[%clk 0:01:24]}  Rd3 {[%clk 0:01:30]} 22. Rb1 {[%clk 0:01:15]}  Bf6 {[%clk 0:01:28]} 23. Rb5 {[%clk 0:01:11]}  Bb3 {[%clk 0:01:24]} 24. Ra7 {[%clk 0:00:39]}  Rxa7 {[%clk 0:01:10]} 25. Bxa7 {[%clk 0:00:40]}  Bxa4 {[%clk 0:01:07]} 26. Rxa5 {[%clk 0:00:37]}  Bc6 {[%clk 0:01:07]} 27. Ne5 {[%clk 0:00:32]}  Rd1+ {[%clk 0:00:53]} 28. Kh2 {[%clk 0:00:26]}  Bb7 {[%clk 0:00:50]} 29. Be3 {[%clk 0:00:18]}  h5 {[%clk 0:00:28]} 30. Bf4 {[%clk 0:00:12]}  g5 {[%clk 0:00:23]} 31. Be3 {[%clk 0:00:11]}  Kg7 {[%clk 0:00:20]} 32. Rb5 {[%clk 0:00:07]}  Ba6 {[%clk 0:00:16]} 33. Ra5 {[%clk 0:00:07]}  Bc8 {[%clk 0:00:16]} 34. f4 {[%clk 0:00:05]}  g4 {[%clk 0:00:11]} 35. hxg4 {[%clk 0:00:04]}  hxg4 {[%clk 0:00:12]} 36. Kg3 {[%clk 0:00:03]}  Re1 {[%clk 0:00:06]} 37. Bf2 {[%clk 0:00:02]}  Re2 {[%clk 0:00:06]} 38. Ra7 {[%clk 0:00:02]}  Be6 {[%clk 0:00:05]} 0-1


[Site "https://www.chess.com"]

[Event "Titled Tuesday Blitz January 10 Early 2023"]
[White "Karttunen, Mika"]
[Black "Kuznecovs, Nikita"]
[WhiteFideId "502081"]
[BlackFideId "11604557"]
[WhiteElo "2490"]
[BlackElo "2287"]
[Result "1-0"]
[Round "08"]
[TimeControl "180+2"]
[Date "2023.01.10"]
[WhiteClock "0:00:09"]
[BlackClock "0:00:09"]

1. d4 {[%clk 0:02:31]}  Nf6 {[%clk 0:02:56]} 2. c4 {[%clk 0:02:30]}  e6 {[%clk 0:02:56]} 3. g3 {[%clk 0:02:29]}  c5 {[%clk 0:02:53]} 4. Nf3 {[%clk 0:02:19]}  cxd4 {[%clk 0:02:52]} 5. Nxd4 {[%clk 0:02:18]}  d5 {[%clk 0:02:51]} 6. Nc3 {[%clk 0:02:04]}  e5 {[%clk 0:02:49]} 7. Nc2 {[%clk 0:01:57]}  d4 {[%clk 0:02:48]} 8. Nb1 {[%clk 0:01:46]}  h5 {[%clk 0:02:42]} 9. h3 {[%clk 0:01:25]}  Bd7 {[%clk 0:02:28]} 10. Bg2 {[%clk 0:01:19]}  Bc6 {[%clk 0:02:28]} 11. O-O {[%clk 0:01:11]}  Qd7 {[%clk 0:02:22]} 12. Nd2 {[%clk 0:01:01]}  Bxg2 {[%clk 0:02:10]} 13. Kxg2 {[%clk 0:01:01]}  Nc6 {[%clk 0:02:05]} 14. Nf3 {[%clk 0:00:51]}  O-O-O {[%clk 0:01:58]} 15. Ng5 {[%clk 0:00:48]}  h4 {[%clk 0:01:50]} 16. b4 {[%clk 0:00:40]}  Bxb4 {[%clk 0:01:38]} 17. Nxb4 {[%clk 0:00:32]}  Nxb4 {[%clk 0:01:38]} 18. Rb1 {[%clk 0:00:32]}  Qc6+ {[%clk 0:01:08]} 19. f3 {[%clk 0:00:18]}  Qxc4 {[%clk 0:01:01]} 20. a3 {[%clk 0:00:17]}  Nc6 {[%clk 0:01:01]} 21. Qd3 {[%clk 0:00:17]}  Qxd3 {[%clk 0:01:00]} 22. exd3 {[%clk 0:00:18]}  Rd7 {[%clk 0:01:00]} 23. g4 {[%clk 0:00:17]}  Nd5 {[%clk 0:00:56]} 24. Re1 {[%clk 0:00:16]}  Nc3 {[%clk 0:00:56]} 25. Rb2 {[%clk 0:00:14]}  f6 {[%clk 0:00:55]} 26. Ne4 {[%clk 0:00:13]}  Nxe4 {[%clk 0:00:55]} 27. fxe4 {[%clk 0:00:13]}  Nd8 {[%clk 0:00:48]} 28. g5 {[%clk 0:00:14]}  Ne6 {[%clk 0:00:47]} 29. g6 {[%clk 0:00:12]}  Nf8 {[%clk 0:00:45]} 30. Rc2+ {[%clk 0:00:12]}  Kb8 {[%clk 0:00:42]} 31. Bd2 {[%clk 0:00:12]}  Nxg6 {[%clk 0:00:43]} 32. Rec1 {[%clk 0:00:12]}  Ne7 {[%clk 0:00:41]} 33. Kf3 {[%clk 0:00:13]}  Nc6 {[%clk 0:00:41]} 34. a4 {[%clk 0:00:12]}  Rc8 {[%clk 0:00:39]} 35. a5 {[%clk 0:00:12]}  Ne7 {[%clk 0:00:40]} 36. Kg4 {[%clk 0:00:11]}  Rxc2 {[%clk 0:00:40]} 37. Rxc2 {[%clk 0:00:11]}  Rc7 {[%clk 0:00:32]} 38. Rb2 {[%clk 0:00:11]}  Kc8 {[%clk 0:00:23]} 39. Kxh4 {[%clk 0:00:11]}  Kd7 {[%clk 0:00:23]} 40. Kg4 {[%clk 0:00:11]}  Ke6 {[%clk 0:00:23]} 41. h4 {[%clk 0:00:11]}  Nc8 {[%clk 0:00:20]} 42. h5 {[%clk 0:00:11]}  Nd6 {[%clk 0:00:18]} 43. Kf3 {[%clk 0:00:11]}  a6 {[%clk 0:00:16]} 44. Kg4 {[%clk 0:00:11]}  Nb5 {[%clk 0:00:17]} 45. Kf3 {[%clk 0:00:09]}  Rc8 {[%clk 0:00:16]} 46. Kg4 {[%clk 0:00:09]}  Rg8 {[%clk 0:00:16]} 47. Rc2 {[%clk 0:00:10]}  Kd7 {[%clk 0:00:15]} 48. Rc5 {[%clk 0:00:09]}  Nd6 {[%clk 0:00:15]} 49. Rd5 {[%clk 0:00:10]}  Ke6 {[%clk 0:00:14]} 50. Bb4 {[%clk 0:00:10]}  Nb5 {[%clk 0:00:13]} 51. Rc5 {[%clk 0:00:10]}  g6 {[%clk 0:00:13]} 52. h6 {[%clk 0:00:11]}  Rh8 {[%clk 0:00:13]} 53. Bd2 {[%clk 0:00:11]}  g5 {[%clk 0:00:14]} 54. Kh5 {[%clk 0:00:11]}  Kf7 {[%clk 0:00:14]} 55. Rd5 {[%clk 0:00:11]}  Ke6 {[%clk 0:00:14]} 56. Kg6 {[%clk 0:00:11]}  g4 {[%clk 0:00:14]} 57. Kg7 {[%clk 0:00:11]}  Re8 {[%clk 0:00:14]} 58. Be1 {[%clk 0:00:10]}  Nd6 {[%clk 0:00:14]} 59. Bb4 {[%clk 0:00:09]}  Nf7 {[%clk 0:00:14]} 60. h7 {[%clk 0:00:09]}  g3 {[%clk 0:00:14]} 61. Rc5 {[%clk 0:00:09]}  g2 {[%clk 0:00:14]} 62. Rc1 {[%clk 0:00:09]}  Ng5 {[%clk 0:00:14]} 63. Rg1 {[%clk 0:00:09]}  Rd8 {[%clk 0:00:15]} 64. h8=Q {[%clk 0:00:08]}  Rd7+ {[%clk 0:00:15]} 65. Kg6 {[%clk 0:00:08]}  Rc7 {[%clk 0:00:09]} 66. Qe8+ {[%clk 0:00:09]} 1-0


[Site "https://www.chess.com"]

[Event "Titled Tuesday Blitz January 10 Early 2023"]
[White "Quinones Garcia, Santiago"]
[Black "Turzo, Attila"]
[WhiteFideId "4408497"]
[BlackFideId "704954"]
[WhiteElo "2248"]
[BlackElo "2279"]
[Result "0-1"]
[Round "08"]
[TimeControl "180+2"]
[Date "2023.01.10"]
[WhiteClock "0:00:01"]
[BlackClock "0:00:43"]

1. d4 {[%clk 0:02:56]}  Nf6 {[%clk 0:03:00]} 2. c4 {[%clk 0:02:54]}  e6 {[%clk 0:03:00]} 3. Nc3 {[%clk 0:02:54]}  Bb4 {[%clk 0:03:00]} 4. Qc2 {[%clk 0:02:54]}  O-O {[%clk 0:02:58]} 5. a3 {[%clk 0:02:55]}  Bxc3+ {[%clk 0:02:58]} 6. Qxc3 {[%clk 0:02:55]}  d5 {[%clk 0:02:59]} 7. Bg5 {[%clk 0:02:53]}  h6 {[%clk 0:02:57]} 8. Bh4 {[%clk 0:02:53]}  Nbd7 {[%clk 0:02:56]} 9. e3 {[%clk 0:02:53]}  b6 {[%clk 0:02:57]} 10. Nf3 {[%clk 0:02:52]}  Ba6 {[%clk 0:02:56]} 11. b3 {[%clk 0:02:52]}  c5 {[%clk 0:02:56]} 12. Bd3 {[%clk 0:02:39]}  Rc8 {[%clk 0:02:55]} 13. Ne5 {[%clk 0:02:23]}  Qc7 {[%clk 0:02:45]} 14. Nxd7 {[%clk 0:02:07]}  Nxd7 {[%clk 0:02:45]} 15. cxd5 {[%clk 0:02:07]}  Bxd3 {[%clk 0:02:41]} 16. Qxd3 {[%clk 0:02:07]}  exd5 {[%clk 0:02:39]} 17. O-O {[%clk 0:01:55]}  c4 {[%clk 0:02:34]} 18. Qc3 {[%clk 0:01:52]}  b5 {[%clk 0:02:33]} 19. f3 {[%clk 0:01:38]}  Rfe8 {[%clk 0:02:32]} 20. Rfe1 {[%clk 0:01:34]}  Qc6 {[%clk 0:02:27]} 21. Re2 {[%clk 0:01:29]}  f5 {[%clk 0:02:22]} 22. Rae1 {[%clk 0:01:06]}  Re6 {[%clk 0:02:16]} 23. Qc2 {[%clk 0:00:47]}  g6 {[%clk 0:02:12]} 24. bxc4 {[%clk 0:00:38]}  Qxc4 {[%clk 0:02:01]} 25. Qb1 {[%clk 0:00:28]}  Rec6 {[%clk 0:02:00]} 26. e4 {[%clk 0:00:17]}  Qxe2 {[%clk 0:01:22]} 27. Rxe2 {[%clk 0:00:15]}  Rc1+ {[%clk 0:01:22]} 28. Qxc1 {[%clk 0:00:09]}  Rxc1+ {[%clk 0:01:23]} 29. Kf2 {[%clk 0:00:10]}  g5 {[%clk 0:01:12]} 30. exf5 {[%clk 0:00:09]}  gxh4 {[%clk 0:01:12]} 31. Re7 {[%clk 0:00:10]}  Nb6 {[%clk 0:00:50]} 32. Rxa7 {[%clk 0:00:09]}  Nc4 {[%clk 0:00:48]} 33. Rd7 {[%clk 0:00:03]}  Rc2+ {[%clk 0:00:45]} 34. Kf1 {[%clk 0:00:03]}  Ra2 {[%clk 0:00:44]} 35. h3 {[%clk 0:00:01]}  Rxa3 {[%clk 0:00:43]} 0-1


[Site "https://www.chess.com"]